[Event "23rd Alekhine Master 2019"]
[Site "Voronezh"]
[Date "2019.06.19"]
[Round "7.3"]
[White "Svetushkin, Dmitry"]
[Black "Kryakvin, Dmitry"]
[Result "1/2-1/2"]
[ECO "B50"]
[WhiteElo "2532"]
[BlackElo "2586"]
[Annotator "ChessBase"]
[PlyCount "86"]
[EventDate "2019.06.12"]
[EventType "swiss"]
[EventCountry "RUS"]
[SourceTitle "playchess.com"]
[Source "ChessBase"]
[SourceQuality "1"]
[TimeControl "40/5400+30:1800+30"]

1. e4 {[%emt 0:00:31]} c5 {[%emt 0:00:00]} 2. Nf3 {[%emt 0:00:09]} d6 {[%emt 0:00:00]} 3. c3 {[%emt 0:00:37]} Nf6 {[%emt 0:00:18]} 4. Be2 {[%emt 0:00:08]} Nbd7 {[%emt 0:02:02]} 5. d3 {[%emt 0:00:36]} b6 {[%emt 0:01:37]} 6. O-O {[%emt 0:02:11]} Bb7 {[%emt 0:00:09]} 7. Nbd2 {[%emt 0:00:37]} e5 {[%emt 0:06:55]} 8. Re1 {[%emt 0:03:44]} Be7 {[%emt 0:00:18]} 9. d4 {[%emt 0:04:16]} exd4 {[%emt 0:06:40]} 10. cxd4 {[%emt 0:00:28]} O-O {[%emt 0:00:07]} 11. Bd3 {[%emt 0:08:05]} cxd4 {[%emt 0:05:02]} 12. Nxd4 {[%emt 0:04:04]} Re8 13. b3 {[%emt 0:23:01]} Bf8 {[%emt 0:00:56]} 14. Bb2 {[%emt 0:02:34]} d5 {[%emt 0:05:38]} 15. exd5 {[%emt 0:09:58]} Rxe1+ {[%emt 0:04:13]} 16. Qxe1 {[%emt 0:00:04]} Nc5 {[%emt 0:03:06]} 17. Bc4 {[%emt 0:01:16]} Nxd5 {[%emt 0:03:17]} 18. Qe5 {[%emt 0:05:14]} Qf6 {[%emt 0:05:05]} 19. N2f3 {[%emt 0:01:25]} Rd8 {[%emt 0:05:22]} 20. Nf5 {[%emt 0:04:05]} Qxe5 {[%emt 0:18:25]} 21. Nxe5 {[%emt 0:00:06]} g6 {[%emt 0:01:07]} 22. Ne3 {[%emt 0:04:15]} Ne6 {[%emt 0:02:41]} 23. Bxd5 {[%emt 0:04:46]} Bxd5 {[%emt 0:00:19]} 24. N5g4 {[%emt 0:03:14]} Be7 {[%emt 0:01:16]} 25. Nf6+ {[%emt 0:01:41]} Bxf6 {[%emt 0:00:05]} 26. Bxf6 {[%emt 0:00:03]} Rd7 {[%emt 0:00:41]} 27. Nxd5 {[%emt 0:02:18]} Rxd5 {[%emt 0:00:10]} 28. Rc1 {[%emt 0:01:09]} Rc5 {[%emt 0:00:09]} 29. Rd1 {[%emt 0:00:08]} Kf8 {[%emt 0:04:03]} 30. g4 {[%emt 0:00:43]} h5 {[%emt 0:03:45]} 31. h3 {[%emt 0:00:56]} Kg8 {[%emt 0:00:30]} 32. Kg2 {[%emt 0:00:30]} g5 {[%emt 0:00:30]} 33. Rd7 {[%emt 0:00:30]} hxg4 {[%emt 0:00:30]} 34. hxg4 {[%emt 0:00:30]} a5 {[%emt 0:00:30]} 35. Rb7 {[%emt 0:04:11]} b5 {[%emt 0:11:09]} 36. Ra7 {[%emt 0:02:19]} b4 {[%emt 0:00:38]} 37. Kf3 {[%emt 0:00:26]} Kh7 {[%emt 0:00:23]} 38. Be7 Rd5 {[%emt 0:04:04]} 39. Ke4 {[%emt 0:02:53]} Rd4+ {[%emt 0:01:10]} 40. Ke3 {[%emt 0:00:00]} Rd5 {[%emt 0:00:00]} 41. f3 {[%emt 0:07:59]} Kg6 {[%emt 0:04:56]} 42. Ra6 {[%emt 0:00:04]} Re5+ {[%emt 0:07:33]} 43. Kd3 {[%emt 0:00:30]} f6 {[%emt 0:05:01]} 1/2-1/2

[Event "23rd Alekhine Master 2019"]
[Site "Voronezh"]
[Date "2019.06.19"]
[Round "7.4"]
[White "Maiorov, Nikita"]
[Black "Rozum, Ivan"]
[Result "1-0"]
[ECO "B06"]
[WhiteElo "2527"]
[BlackElo "2572"]
[Annotator "ChessBase"]
[PlyCount "65"]
[EventDate "2019.06.12"]
[EventType "swiss"]
[EventCountry "RUS"]
[SourceTitle "playchess.com"]
[Source "ChessBase"]
[SourceQuality "1"]
[TimeControl "40/5400+30:1800+30"]

1. d4 {[%emt 0:03:43]} g6 {[%emt 0:00:01]} 2. e4 {[%emt 0:00:52]} Bg7 {[%emt 0:00:07]} 3. c3 {[%emt 0:00:52]} d6 {[%emt 0:00:15]} 4. Nf3 {[%emt 0:00:05]} Nf6 {[%emt 0:00:22]} 5. Bd3 {[%emt 0:00:04]} O-O {[%emt 0:00:14]} 6. O-O {[%emt 0:00:04]} Nbd7 {[%emt 0:03:52]} 7. Bg5 {[%emt 0:08:53]} h6 {[%emt 0:02:33]} 8. Bh4 {[%emt 0:00:26]} g5 {[%emt 0:03:48]} 9. Bg3 {[%emt 0:00:08]} Nh5 {[%emt 0:00:15]} 10. Na3 {[%emt 0:00:33]} e6 {[%emt 0:00:42]} 11. Nd2 {[%emt 0:01:59]} Nxg3 {[%emt 0:03:01]} 12. hxg3 {[%emt 0:00:05]} f5 {[%emt 0:02:16]} 13. exf5 {[%emt 0:11:38]} exf5 {[%emt 0:00:07]} 14. Qb3+ {[%emt 0:08:12]} Kh8 {[%emt 0:00:12]} 15. Rae1 {[%emt 0:00:07]} Nb6 {[%emt 0:05:05]} 16. Nac4 {[%emt 0:01:03]} Qf6 {[%emt 0:04:14]} 17. Nxb6 {[%emt 0:02:44]} axb6 {[%emt 0:00:17]} 18. Bc4 {[%emt 0:02:48]} Bd7 {[%emt 0:05:04]} 19. Be6 {[%emt 0:01:20]} Be8 {[%emt 0:06:42]} 20. f4 {[%emt 0:07:36]} Bh5 {[%emt 0:08:03]} 21. Re3 {[%emt 0:08:05]} Rae8 {[%emt 0:02:43]} 22. Rfe1 {[%emt 0:00:08]} Re7 {[%emt 0:02:45]} 23. Nf1 {[%emt 0:01:07]} Rfe8 {[%emt 0:03:22]} 24. Qd5 {[%emt 0:12:42]} Bg6 {[%emt 0:03:22]} 25. Bd7 {[%emt 0:07:38]} c6 {[%emt 0:05:26]} 26. Bxe8 {[%emt 0:01:50]} Rxe3 {[%emt 0:00:21]} 27. Nxe3 {[%emt 0:00:04]} cxd5 {[%emt 0:04:00]} 28. Nxd5 {[%emt 0:00:05]} Qf8 {[%emt 0:03:08]} 29. Bxg6 {[%emt 0:00:09]} Qg8 {[%emt 0:00:10]} 30. Re8 {[%emt 0:02:51]} Bf8 {[%emt 0:00:01]} 31. Ne7 {[%emt 0:00:20]} Bxe7 {[%emt 0:00:19]} 32. Rxg8+ {[%emt 0:00:06]} Kxg8 {[%emt 0:00:03]} 33. Kf2 {[%emt 0:00:32]} 1-0

[Event "23rd Alekhine Master 2019"]
[Site "Voronezh"]
[Date "2019.06.19"]
[Round "7.5"]
[White "Shariyazdanov, Andrey"]
[Black "Goganov, Aleksey"]
[Result "1/2-1/2"]
[ECO "D11"]
[WhiteElo "2526"]
[BlackElo "2559"]
[Annotator "ChessBase"]
[PlyCount "102"]
[EventDate "2019.06.12"]
[EventType "swiss"]
[EventCountry "RUS"]
[SourceTitle "playchess.com"]
[Source "ChessBase"]
[SourceQuality "1"]
[TimeControl "40/5400+30:1800+30"]

1. d4 {[%emt 0:00:00]} d5 {[%emt 0:00:00]} 2. c4 {[%emt 0:00:00]} c6 {[%emt 0:00:00]} 3. Nf3 {[%emt 0:00:06]} Nf6 {[%emt 0:00:00]} 4. g3 {[%emt 0:00:24]} Bf5 {[%emt 0:00:10]} 5. Nc3 {[%emt 0:00:11]} e6 {[%emt 0:00:25]} 6. Qb3 {[%emt 0:00:40]} Qb6 {[%emt 0:00:37]} 7. c5 {[%emt 0:00:32]} Qxb3 {[%emt 0:02:06]} 8. axb3 {[%emt 0:00:06]} Be7 {[%emt 0:06:55]} 9. b4 {[%emt 0:02:34]} O-O {[%emt 0:01:28]} 10. Bf4 {[%emt 0:01:06]} a6 {[%emt 0:00:23]} 11. Nd2 {[%emt 0:06:56]} Nbd7 {[%emt 0:06:13]} 12. f3 {[%emt 0:00:59]} Bg6 {[%emt 0:01:50]} 13. e4 {[%emt 0:01:11]} h6 {[%emt 0:21:51]} 14. Be2 {[%emt 0:05:25]} Rad8 {[%emt 0:02:32]} 15. Nb3 {[%emt 0:09:09]} dxe4 {[%emt 0:04:00]} 16. Na5 {[%emt 0:04:28]} Nb8 {[%emt 0:02:10]} 17. O-O-O {[%emt 0:01:14]} Rd7 {[%emt 0:02:11]} 18. Nc4 {[%emt 0:00:17]} exf3 {[%emt 0:02:56]} 19. Bxf3 {[%emt 0:00:06]} Nd5 {[%emt 0:08:12]} 20. Nxd5 {[%emt 0:10:24]} cxd5 {[%emt 0:01:56]} 21. Ne5 {[%emt 0:01:13]} Rdd8 {[%emt 0:00:08]} 22. Nxg6 {[%emt 0:01:38]} fxg6 {[%emt 0:00:57]} 23. Bg4 {[%emt 0:01:02]} Nc6 {[%emt 0:06:03]} 24. Rhe1 {[%emt 0:04:31]} Nxb4 {[%emt 0:07:10]} 25. Rxe6 {[%emt 0:01:05]} Nc6 {[%emt 0:00:28]} 26. Rde1 {[%emt 0:04:58]} Bf6 {[%emt 0:02:58]} 27. Bc7 {[%emt 0:02:10]} Ra8 {[%emt 0:00:15]} 28. Rd6 {[%emt 0:04:56]} Nxd4 {[%emt 0:01:40]} 29. Rxd5 {[%emt 0:00:11]} a5 {[%emt 0:01:15]} 30. Re4 {[%emt 0:06:12]} Nf5 {[%emt 0:03:56]} 31. Bf4 {[%emt 0:05:31]} a4 {[%emt 0:00:27]} 32. Rb4 {[%emt 0:00:55]} a3 {[%emt 0:01:45]} 33. bxa3 {[%emt 0:00:07]} Rxa3 {[%emt 0:00:02]} 34. Rxb7 {[%emt 0:00:26]} Re8 {[%emt 0:01:07]} 35. Rb8 {[%emt 0:00:29]} Rxb8 {[%emt 0:11:30]} 36. Bxb8 {[%emt 0:00:17]} Ne3 {[%emt 0:00:02]} 37. Be6+ {[%emt 0:01:29]} Kh7 {[%emt 0:00:04]} 38. Rd7 {[%emt 0:00:54]} Rc3+ {[%emt 0:01:50]} 39. Kd2 {[%emt 0:01:03]} Nf1+ {[%emt 0:00:03]} 40. Ke2 {[%emt 0:00:00]} Nxh2 {[%emt 0:00:00]} 41. Bd6 {[%emt 0:06:54]} Nf3 {[%emt 0:01:23]} 42. Bd5 {[%emt 0:09:37]} Nd4+ {[%emt 0:02:22]} 43. Ke1 {[%emt 0:00:53]} Bg5 {[%emt 0:07:10]} 44. g4 {[%emt 0:08:03]} Be3 {[%emt 0:04:01]} 45. Kf1 {[%emt 0:00:04]} Rc2 {[%emt 0:00:38]} 46. Be4 {[%emt 0:02:58]} Rf2+ {[%emt 0:00:05]} 47. Ke1 {[%emt 0:00:03]} Re2+ {[%emt 0:01:55]} 48. Kf1 {[%emt 0:00:30]} Rd2 {[%emt 0:03:13]} 49. Be5 {[%emt 0:03:38]} Rf2+ {[%emt 0:00:12]} 50. Ke1 {[%emt 0:00:04]} Re2+ {[%emt 0:00:08]} 51. Kf1 {[%emt 0:00:07]} Rf2+ {[%emt 0:00:11]} 1/2-1/2

[Event "23rd Alekhine Master 2019"]
[Site "Voronezh"]
[Date "2019.06.19"]
[Round "7.6"]
[White "Zakhartsov, Vladimir"]
[Black "Meshkovs, Nikita"]
[Result "0-1"]
[ECO "A62"]
[WhiteElo "2480"]
[BlackElo "2550"]
[Annotator "ChessBase"]
[PlyCount "74"]
[EventDate "2019.06.12"]
[EventType "swiss"]
[EventCountry "RUS"]
[SourceTitle "playchess.com"]
[Source "ChessBase"]
[SourceQuality "1"]
[TimeControl "40/5400+30:1800+30"]

1. d4 {[%emt 0:07:36]} Nf6 {[%emt 0:00:00]} 2. c4 {[%emt 0:00:06]} e6 {[%emt 0:00:00]} 3. g3 {[%emt 0:00:07]} c5 {[%emt 0:02:17]} 4. d5 {[%emt 0:00:07]} exd5 {[%emt 0:00:08]} 5. cxd5 {[%emt 0:00:06]} g6 {[%emt 0:01:02]} 6. Bg2 {[%emt 0:00:12]} d6 {[%emt 0:00:52]} 7. Nc3 {[%emt 0:00:15]} Bg7 {[%emt 0:00:14]} 8. Nf3 {[%emt 0:00:11]} O-O {[%emt 0:00:48]} 9. O-O {[%emt 0:00:14]} Re8 {[%emt 0:02:35]} 10. Bf4 {[%emt 0:02:58]} Bf5 {[%emt 0:04:12]} 11. Nd2 {[%emt 0:06:29]} Nh5 {[%emt 0:03:45]} 12. Be3 {[%emt 0:00:06]} Nd7 {[%emt 0:01:29]} 13. Qb3 {[%emt 0:06:12]} b5 {[%emt 0:16:06]} 14. Nxb5 {[%emt 0:05:25]} Rb8 {[%emt 0:00:26]} 15. Qa4 {[%emt 0:00:22]} Ne5 {[%emt 0:00:42]} 16. Nc4 {[%emt 0:11:01]} Nxc4 {[%emt 0:04:44]} 17. Qxc4 {[%emt 0:00:07]} Qd7 {[%emt 0:03:10]} 18. a4 {[%emt 0:06:30]} a6 {[%emt 0:01:13]} 19. Na3 {[%emt 0:00:10]} Bxb2 {[%emt 0:04:30]} 20. Ra2 {[%emt 0:00:11]} Rb4 {[%emt 0:00:36]} 21. Rxb2 {[%emt 0:00:12]} Rxb2 {[%emt 0:05:10]} 22. Qxa6 {[%emt 0:00:27]} Bg4 {[%emt 0:01:09]} 23. Re1 {[%emt 0:01:28]} Ra2 {[%emt 0:02:31]} 24. Nb5 {[%emt 0:02:29]} Bxe2 {[%emt 0:03:00]} 25. Qc6 {[%emt 0:00:26]} Bxb5 {[%emt 0:00:09]} 26. axb5 {[%emt 0:00:05]} Nf6 {[%emt 0:00:09]} 27. b6 {[%emt 0:10:45]} Rb2 {[%emt 0:00:11]} 28. Rd1 {[%emt 0:00:13]} Rb8 {[%emt 0:01:43]} 29. Bxc5 {[%emt 0:01:02]} dxc5 {[%emt 0:01:03]} 30. Qxf6 {[%emt 0:00:05]} R8xb6 {[%emt 0:00:06]} 31. Qe5 {[%emt 0:01:03]} Rb1 {[%emt 0:00:41]} 32. Rf1 {[%emt 0:00:22]} Qd6 {[%emt 0:01:58]} 33. Qe4 {[%emt 0:00:39]} Rxf1+ {[%emt 0:01:25]} 34. Bxf1 {[%emt 0:00:05]} Qf6 {[%emt 0:01:16]} 35. Bb5 {[%emt 0:04:23]} Qd4 {[%emt 0:00:54]} 36. Qe7 {[%emt 0:02:12]} Kg7 {[%emt 0:00:48]} 37. Bc6 {[%emt 0:00:51]} c4 {[%emt 0:01:06]} 0-1

[Event "23rd Alekhine Master 2019"]
[Site "Voronezh"]
[Date "2019.06.19"]
[Round "7.7"]
[White "Ruiz Castillo, Joshua Daniel"]
[Black "Puranik, Abhimanyu"]
[Result "1-0"]
[ECO "C78"]
[WhiteElo "2472"]
[BlackElo "2548"]
[Annotator "ChessBase"]
[PlyCount "91"]
[EventDate "2019.06.12"]
[EventType "swiss"]
[EventCountry "RUS"]
[SourceTitle "playchess.com"]
[Source "ChessBase"]
[SourceQuality "1"]
[TimeControl "40/5400+30:1800+30"]

1. e4 {[%emt 0:00:00]} e5 {[%emt 0:00:00]} 2. Nf3 {[%emt 0:00:00]} Nc6 {[%emt 0:00:00]} 3. Bb5 {[%emt 0:00:00]} a6 {[%emt 0:00:00]} 4. Ba4 {[%emt 0:00:00]} Nf6 {[%emt 0:00:13]} 5. O-O {[%emt 0:00:06]} b5 {[%emt 0:01:06]} 6. Bb3 {[%emt 0:01:22]} Bb7 {[%emt 0:00:14]} 7. Qe2 {[%emt 0:20:20]} Bc5 {[%emt 0:01:58]} 8. c3 {[%emt 0:00:04]} d6 {[%emt 0:00:19]} 9. d3 {[%emt 0:00:19]} h6 {[%emt 0:00:33]} 10. Nbd2 {[%emt 0:00:07]} O-O {[%emt 0:00:35]} 11. Rd1 {[%emt 0:00:10]} Re8 {[%emt 0:03:25]} 12. Nf1 {[%emt 0:00:11]} Bb6 {[%emt 0:06:40]} 13. Ng3 {[%emt 0:02:37]} Bc8 {[%emt 0:09:40]} 14. h3 {[%emt 0:01:36]} Be6 {[%emt 0:01:12]} 15. Bc2 {[%emt 0:02:40]} d5 {[%emt 0:04:28]} 16. d4 {[%emt 0:21:28]} exd4 {[%emt 0:31:30]} 17. e5 {[%emt 0:00:22]} Nd7 {[%emt 0:06:13]} 18. cxd4 {[%emt 0:00:05]} f6 {[%emt 0:07:04]} 19. Qd3 {[%emt 0:04:29]} Nf8 {[%emt 0:00:41]} 20. Qc3 {[%emt 0:00:23]} Nb8 {[%emt 0:03:58]} 21. a4 {[%emt 0:05:02]} Nbd7 {[%emt 0:06:48]} 22. exf6 {[%emt 0:02:43]} Nxf6 {[%emt 0:03:17]} 23. a5 {[%emt 0:03:53]} Ba7 {[%emt 0:00:12]} 24. Bf4 {[%emt 0:00:06]} c5 {[%emt 0:03:44]} 25. dxc5 {[%emt 0:00:17]} Bxc5 {[%emt 0:00:09]} 26. Qxc5 {[%emt 0:00:33]} Rc8 {[%emt 0:00:03]} 27. Qb6 {[%emt 0:00:31]} Rxc2 {[%emt 0:00:28]} 28. Nd4 {[%emt 0:01:28]} Rc4 {[%emt 0:03:16]} 29. Qxa6 {[%emt 0:00:43]} Bd7 {[%emt 0:00:48]} 30. b3 {[%emt 0:00:23]} Rc3 {[%emt 0:02:10]} 31. Nxb5 {[%emt 0:03:24]} Re6 {[%emt 0:00:43]} 32. Qb7 {[%emt 0:00:28]} Bc8 {[%emt 0:01:41]} 33. Qa8 {[%emt 0:01:44]} Ra6 {[%emt 0:01:56]} 34. Qxa6 {[%emt 0:00:05]} Bxa6 {[%emt 0:00:06]} 35. Nxc3 {[%emt 0:00:02]} Ng6 {[%emt 0:00:43]} 36. Be3 {[%emt 0:00:21]} Qb8 {[%emt 0:01:01]} 37. Bb6 {[%emt 0:03:16]} Nf4 {[%emt 0:00:43]} 38. b4 {[%emt 0:00:01]} Qb7 {[%emt 0:00:47]} 39. Rd4 {[%emt 0:00:31]} Ne4 {[%emt 0:00:21]} 40. Ngxe4 {[%emt 0:00:00]} dxe4 {[%emt 0:00:00]} 41. b5 {[%emt 0:01:21]} Bxb5 {[%emt 0:02:15]} 42. Nxb5 {[%emt 0:00:05]} Qc6 {[%emt 0:00:22]} 43. Rd8+ {[%emt 0:02:03]} Kh7 {[%emt 0:00:05]} 44. Be3 {[%emt 0:00:06]} Ne2+ {[%emt 0:00:59]} 45. Kh1 {[%emt 0:00:06]} Qxb5 {[%emt 0:00:05]} 46. a6 {[%emt 0:00:14]} 1-0

[Event "23rd Alekhine Master 2019"]
[Site "Voronezh"]
[Date "2019.06.19"]
[Round "7.8"]
[White "Tsydypov, Zhamsaran"]
[Black "Golubov, Saveliy"]
[Result "0-1"]
[ECO "C42"]
[WhiteElo "2573"]
[BlackElo "2460"]
[Annotator "ChessBase"]
[PlyCount "56"]
[EventDate "2019.06.12"]
[EventType "swiss"]
[EventCountry "RUS"]
[SourceTitle "playchess.com"]
[Source "ChessBase"]
[SourceQuality "1"]
[TimeControl "40/5400+30:1800+30"]

1. e4 {[%emt 0:03:11]} e5 {[%emt 0:01:00]} 2. Nf3 {[%emt 0:00:18]} Nf6 {[%emt 0:00:14]} 3. Nxe5 {[%emt 0:00:23]} d6 {[%emt 0:00:10]} 4. Nf3 {[%emt 0:00:28]} Nxe4 {[%emt 0:00:12]} 5. d4 {[%emt 0:00:40]} d5 {[%emt 0:00:17]} 6. Bd3 {[%emt 0:00:09]} Bd6 {[%emt 0:02:17]} 7. O-O {[%emt 0:02:36]} O-O {[%emt 0:00:31]} 8. c4 {[%emt 0:00:32]} c6 {[%emt 0:00:34]} 9. Qc2 {[%emt 0:01:05]} Na6 {[%emt 0:01:38]} 10. a3 {[%emt 0:00:06]} Bg4 {[%emt 0:01:52]} 11. Ne5 {[%emt 0:00:40]} Bxe5 {[%emt 0:00:49]} 12. dxe5 {[%emt 0:00:09]} Nac5 {[%emt 0:00:31]} 13. f3 {[%emt 0:00:45]} Nxd3 {[%emt 0:04:05]} 14. Qxd3 {[%emt 0:00:04]} Nc5 {[%emt 0:00:18]} 15. Qd4 {[%emt 0:00:52]} Nb3 {[%emt 0:01:48]} 16. Qxg4 {[%emt 0:00:02]} Nxa1 {[%emt 0:00:17]} 17. Bh6 {[%emt 0:00:50]} g6 {[%emt 0:00:17]} 18. Nc3 {[%emt 0:02:00]} Qb6+ {[%emt 0:02:06]} 19. Rf2 {[%emt 0:04:46]} Rfe8 {[%emt 0:54:45]} 20. Qh4 {[%emt 0:08:13]} Rxe5 {[%emt 0:05:56]} 21. Ne4 {[%emt 0:00:35]} f5 {[%emt 0:07:31]} 22. c5 {[%emt 0:02:36]} Qc7 {[%emt 0:03:18]} 23. Nf6+ {[%emt 0:00:43]} Kf7 {[%emt 0:00:57]} 24. Rf1 {[%emt 0:06:37]} Nb3 {[%emt 0:01:29]} 25. Bg5 {[%emt 0:04:16]} Rh8 {[%emt 0:01:21]} 26. Nxh7 {[%emt 0:12:26]} Ke6 {[%emt 0:00:22]} 27. Bf4 {[%emt 0:08:41]} Qxh7 {[%emt 0:00:23]} 28. Qf2 {[%emt 0:00:04]} Qh4 {[%emt 0:00:50]} 0-1

[Event "23rd Alekhine Master 2019"]
[Site "Voronezh"]
[Date "2019.06.19"]
[Round "7.9"]
[White "Shaposhnikov, Evgeny"]
[Black "Harutjunyan, Gevorg"]
[Result "1/2-1/2"]
[ECO "D02"]
[WhiteElo "2572"]
[BlackElo "2446"]
[Annotator "ChessBase"]
[PlyCount "108"]
[EventDate "2019.06.12"]
[EventType "swiss"]
[EventCountry "RUS"]
[SourceTitle "playchess.com"]
[Source "ChessBase"]
[SourceQuality "1"]
[TimeControl "40/5400+30:1800+30"]

1. Nf3 {[%emt 0:00:00]} d5 {[%emt 0:00:00]} 2. d4 {[%emt 0:00:23]} Nc6 {[%emt 0:00:32]} 3. c4 {[%emt 0:01:02]} Bg4 {[%emt 0:00:13]} 4. Nc3 {[%emt 0:01:10]} e6 {[%emt 0:00:35]} 5. cxd5 {[%emt 0:00:29]} exd5 {[%emt 0:00:13]} 6. Bf4 {[%emt 0:00:12]} Bd6 {[%emt 0:01:54]} 7. Bg3 {[%emt 0:00:20]} a6 {[%emt 0:07:10]} 8. e3 {[%emt 0:01:51]} Nge7 {[%emt 0:02:18]} 9. Be2 {[%emt 0:02:17]} O-O {[%emt 0:01:18]} 10. Rc1 {[%emt 0:02:15]} Rc8 {[%emt 0:04:07]} 11. a3 {[%emt 0:03:23]} h6 {[%emt 0:07:16]} 12. Na4 {[%emt 0:03:51]} Bxg3 {[%emt 0:05:48]} 13. hxg3 {[%emt 0:00:06]} Qd6 {[%emt 0:00:58]} 14. Nc5 {[%emt 0:01:14]} Rb8 {[%emt 0:02:56]} 15. Qb3 {[%emt 0:09:41]} Nf5 {[%emt 0:06:01]} 16. Qa4 {[%emt 0:19:29]} Qe7 {[%emt 0:11:20]} 17. Rc3 {[%emt 0:10:39]} Bxf3 {[%emt 0:09:14]} 18. gxf3 {[%emt 0:12:52]} Rfe8 {[%emt 0:03:40]} 19. Nxa6 {[%emt 0:14:49]} bxa6 {[%emt 0:07:29]} 20. Qxc6 {[%emt 0:00:02]} Rxb2 {[%emt 0:03:51]} 21. Bd1 {[%emt 0:01:17]} Nxd4 {[%emt 0:00:50]} 22. Qxd5 {[%emt 0:06:45]} Qf6 {[%emt 0:01:25]} 23. Rxc7 {[%emt 0:02:00]} Rd8 {[%emt 0:04:04]} 24. Rd7 {[%emt 0:01:02]} Rxd7 {[%emt 0:06:22]} 25. Qxd7 {[%emt 0:00:01]} Nxf3+ {[%emt 0:00:12]} 26. Bxf3 {[%emt 0:00:04]} Qxf3 {[%emt 0:00:05]} 27. O-O {[%emt 0:00:10]} Rb5 {[%emt 0:03:59]} 28. Qd8+ {[%emt 0:02:45]} Kh7 {[%emt 0:00:08]} 29. Qd1 {[%emt 0:00:15]} Qxd1 {[%emt 0:03:55]} 30. Rxd1 {[%emt 0:00:02]} Rb3 {[%emt 0:00:07]} 31. a4 {[%emt 0:00:03]} Rb4 {[%emt 0:00:08]} 32. a5 {[%emt 0:00:11]} Rb5 {[%emt 0:00:14]} 33. Ra1 {[%emt 0:00:09]} f5 {[%emt 0:00:27]} 34. Kg2 {[%emt 0:00:18]} Kg6 {[%emt 0:01:12]} 35. Kf3 {[%emt 0:00:21]} Kf6 {[%emt 0:00:17]} 36. g4 {[%emt 0:00:25]} g6 {[%emt 0:04:25]} 37. Ra4 {[%emt 0:00:18]} fxg4+ {[%emt 0:00:33]} 38. Kxg4 {[%emt 0:00:13]} h5+ {[%emt 0:01:10]} 39. Kh4 {[%emt 0:00:23]} Rf5 {[%emt 0:00:19]} 40. f4 {[%emt 0:00:00]} g5+ {[%emt 0:00:00]} 41. Kg3 {[%emt 0:04:01]} Rb5 {[%emt 0:06:03]} 42. fxg5+ {[%emt 0:00:56]} Kxg5 {[%emt 0:00:23]} 43. Kf3 {[%emt 0:00:06]} Rf5+ {[%emt 0:01:48]} 44. Kg3 {[%emt 0:00:09]} Re5 {[%emt 0:00:24]} 45. Kf3 {[%emt 0:00:11]} h4 {[%emt 0:01:02]} 46. Rg4+ {[%emt 0:02:38]} Kh5 {[%emt 0:00:07]} 47. Rg8 {[%emt 0:01:28]} Rf5+ {[%emt 0:01:59]} 48. Ke4 {[%emt 0:00:39]} Rg5 {[%emt 0:01:08]} 49. Rxg5+ {[%emt 0:01:21]} Kxg5 {[%emt 0:00:03]} 50. Kf3 {[%emt 0:00:06]} Kf5 {[%emt 0:00:05]} 51. Kg2 {[%emt 0:00:11]} Kg4 {[%emt 0:03:05]} 52. Kh2 {[%emt 0:00:31]} Kf3 {[%emt 0:00:08]} 53. Kh3 {[%emt 0:00:05]} Kxe3 {[%emt 0:00:03]} 54. Kxh4 {[%emt 0:00:06]} Ke4 1/2-1/2

[Event "23rd Alekhine Master 2019"]
[Site "Voronezh"]
[Date "2019.06.19"]
[Round "7.10"]
[White "Fedorov, Alexei"]
[Black "Nikitenko, Mihail"]
[Result "1-0"]
[ECO "C00"]
[WhiteElo "2553"]
[BlackElo "2424"]
[Annotator "ChessBase"]
[PlyCount "47"]
[EventDate "2019.06.12"]
[EventType "swiss"]
[EventCountry "RUS"]
[SourceTitle "playchess.com"]
[Source "ChessBase"]
[SourceQuality "1"]
[TimeControl "40/5400+30:1800+30"]

1. e4 {[%emt 0:00:00]} e6 {[%emt 0:00:00]} 2. f4 {[%emt 0:00:10]} d5 {[%emt 0:00:13]} 3. e5 {[%emt 0:00:07]} c5 {[%emt 0:00:48]} 4. Nf3 {[%emt 0:00:13]} Nc6 {[%emt 0:02:14]} 5. c3 {[%emt 0:00:26]} Qb6 {[%emt 0:01:47]} 6. Na3 {[%emt 0:01:48]} Bd7 {[%emt 0:02:38]} 7. Nc2 {[%emt 0:02:27]} Nh6 {[%emt 0:00:35]} 8. Rb1 {[%emt 0:05:07]} f6 {[%emt 0:02:35]} 9. b4 {[%emt 0:18:19]} cxb4 {[%emt 0:15:15]} 10. cxb4 {[%emt 0:03:58]} Ng4 {[%emt 0:15:28]} 11. Qe2 {[%emt 0:24:41]} Rc8 {[%emt 0:00:28]} 12. a3 {[%emt 0:09:05]} fxe5 {[%emt 0:03:43]} 13. fxe5 {[%emt 0:02:43]} Bc5 {[%emt 0:04:54]} 14. Bb2 {[%emt 0:04:17]} Bf2+ {[%emt 0:00:44]} 15. Kd1 {[%emt 0:00:04]} Qc7 {[%emt 0:00:59]} 16. Rc1 {[%emt 0:02:31]} Ne7 {[%emt 0:06:29]} 17. h3 {[%emt 0:06:30]} Ba4 {[%emt 0:01:31]} 18. Nfe1 {[%emt 0:04:14]} Nf5 {[%emt 0:13:40]} 19. hxg4 {[%emt 0:01:29]} Ng3 {[%emt 0:00:42]} 20. Qxf2 {[%emt 0:00:15]} Nxh1 {[%emt 0:00:02]} 21. Qh4 {[%emt 0:00:50]} Qf7 {[%emt 0:02:22]} 22. Qxh1 {[%emt 0:00:26]} Qf4 {[%emt 0:00:03]} 23. Bd3 {[%emt 0:01:36]} Qxg4+ {[%emt 0:00:09]} 24. Nf3 {[%emt 0:00:26]} 1-0